[Event "GER-ch Youth-U12 2022"]
[Site "Willingen"]
[Date "2022.06.11"]
[Round "9.14"]
[White "Nguyen, Bach Khoi"]
[Black "Seth, Aakrit"]
[Result "1/2-1/2"]
[ECO "B27"]
[WhiteElo "1261"]
[BlackElo "1435"]
[Annotator "NA RC COMBH"]
[PlyCount "86"]
[EventDate "2022.06.05"]
[EventType "swiss"]
[EventRounds "9"]
[EventCountry "GER"]
[SourceTitle "playchess.com"]
[Source "ChessBase"]
[SourceQuality "1"]
[TimeControl "40/4500+30:900+30"]

1. e4 {[%emt 0:00:00]} c5 {[%emt 0:00:00]} 2. Nf3 {[%emt 0:00:00]} g6 {[%emt 0:00:16]} 3. d4 {[%emt 0:00:00]} cxd4 {[%emt 0:00:00]} 4. Qxd4 {[%emt 0:00:00]} Nf6 {[%emt 0:00:00]} 5. e5 {[%emt 0:00:00]} Nc6 {[%emt 0:00:00]} 6. Qa4 {[%emt 0:00:00]} Nd5 {[%emt 0:00:00]} 7. Qe4 {[%emt 0:00:00]} Nb6 {[%emt 0:00:00]} 8. Nc3 {[%emt 0:00:00]} Bg7 {[%emt 0:00:00]} 9. Bf4 {[%emt 0:00:00]} O-O {[%emt 0:00:00]} 10. O-O-O {[%emt 0:00:00]} Re8 {[%emt 0:00:00]} 11. h4 {[%emt 0:00:00]} d5 {[%emt 0:09:07]} 12. exd6 {[%emt 0:00:46]} Bxc3 {[%emt 0:00:15]} 13. bxc3 {[%emt 0:04:13]} Bf5 {[%emt 0:02:08]} 14. Qe2 {[%emt 0:05:04]} e5 {[%emt 0:07:54]} 15. Be3 {[%emt 0:10:00]} Bg4 {[%emt 0:01:55]} 16. h5 {[%emt 0:12:13]} e4 {[%emt 0:09:49]} 17. hxg6 {[%emt 0:03:26]} fxg6 {[%emt 0:01:31]} 18. Bxb6 {[%emt 0:00:42]} axb6 {[%emt 0:00:20]} 19. Qc4+ {[%emt 0:00:33]} Kg7 {[%emt 0:00:43]} 20. d7 {[%emt 0:01:18]} Rf8 {[%emt 0:02:18]} 21. Qxe4 {[%emt 0:03:05]} Bxf3 {[%emt 0:22:56]} 22. gxf3 {[%emt 0:01:01]} Rxa2 {[%emt 0:00:11]} 23. Bd3 {[%emt 0:01:22]} Qg5+ {[%emt 0:08:45]} 24. Qe3 {[%emt 0:00:54]} Qxe3+ {[%emt 0:00:48]} 25. fxe3 {[%emt 0:00:04]} Rxf3 {[%emt 0:01:41]} 26. Kb1 {[%emt 0:01:22]} Ra8 {[%emt 0:00:24]} 27. Be4 {[%emt 0:01:11]} Rff8 {[%emt 0:00:13]} 28. Rh2 {[%emt 0:01:35]} Rad8 {[%emt 0:00:46]} 29. Rdh1 {[%emt 0:01:30]} Rh8 {[%emt 0:01:15]} 30. Rd1 {[%emt 0:00:19]} h5 {[%emt 0:03:12]} 31. Rd6 {[%emt 0:01:09]} Rh6 {[%emt 0:03:44]} 32. Rg2 {[%emt 0:03:49]} Ne5 {[%emt 0:01:20]} 33. Rg5 {[%emt 0:01:25]} Rxd7 {[%emt 0:01:19]} 34. Re6 {[%emt 0:01:34]} Nf7 {[%emt 0:02:15]} 35. Rgxg6+ {[%emt 0:00:18]} Rxg6 {[%emt 0:00:28]} 36. Rxg6+ {[%emt 0:00:06]} Kf8 {[%emt 0:00:38]} 37. Rxb6 {[%emt 0:00:16]} Re7 {[%emt 0:01:45]} 38. Bf3 {[%emt 0:02:49]} h4 {[%emt 0:00:47]} 39. Rxb7 {[%emt 0:00:15]} Rxe3 {[%emt 0:00:52]} 40. Bd5 {[%emt 0:00:25]} Ng5 {[%emt 0:01:37]} 41. Rb8+ {[%emt 0:15:30]} Ke7 {[%emt 0:16:57]} 42. Rh8 {[%emt 0:01:28]} h3 {[%emt 0:00:47]} 43. c4 {[%emt 0:00:45]} Kd6 {[%emt 0:11:36]} 1/2-1/2

[Event "GER-ch Youth-U12 2022"]
[Site "Willingen"]
[Date "2022.06.11"]
[Round "9.15"]
[White "Noennig, Jakob"]
[Black "Büchel, David"]
[Result "0-1"]
[ECO "B78"]
[WhiteElo "1556"]
[BlackElo "1527"]
[Annotator "NA RC COMBH"]
[PlyCount "44"]
[EventDate "2022.06.05"]
[EventType "swiss"]
[EventRounds "9"]
[EventCountry "GER"]
[SourceTitle "playchess.com"]
[Source "ChessBase"]
[SourceQuality "1"]
[TimeControl "40/4500+30:900+30"]

1. e4 {[%emt 0:00:00]} c5 {[%emt 0:00:00]} 2. Nf3 {[%emt 0:00:00]} d6 {[%emt 0:00:00]} 3. d4 {[%emt 0:00:00]} cxd4 {[%emt 0:00:00]} 4. Nxd4 {[%emt 0:00:00]} Nf6 {[%emt 0:00:00]} 5. Nc3 {[%emt 0:00:00]} g6 {[%emt 0:00:00]} 6. Be3 {[%emt 0:00:00]} Bg7 {[%emt 0:00:00]} 7. f3 {[%emt 0:00:00]} O-O {[%emt 0:00:00]} 8. Bc4 {[%emt 0:00:00]} Nc6 {[%emt 0:00:00]} 9. Qd2 {[%emt 0:00:00]} Bd7 {[%emt 0:00:00]} 10. O-O-O {[%emt 0:00:00]} Rc8 {[%emt 0:00:00]} 11. Bb3 {[%emt 0:00:00]} Nxd4 {[%emt 0:00:00]} 12. Bxd4 {[%emt 0:00:00]} b5 {[%emt 0:00:00]} 13. Bxa7 {[%emt 0:00:46]} b4 {[%emt 0:00:00]} 14. Ne2 {[%emt 0:02:38]} Qa5 {[%emt 0:00:00]} 15. Be3 {[%emt 0:04:19]} Be6 {[%emt 0:04:17]} 16. Qd3 {[%emt 0:10:19]} Nd7 {[%emt 0:08:00]} 17. Kb1 {[%emt 0:07:04]} Ne5 {[%emt 0:09:02]} 18. Qd2 {[%emt 0:13:23]} Nc4 {[%emt 0:11:41]} 19. Bxc4 {[%emt 0:02:19]} Bxc4 {[%emt 0:01:06]} 20. b3 {[%emt 0:02:44]} Qxa2+ {[%emt 0:02:11]} 21. Kxa2 {[%emt 0:01:35]} Ra8+ {[%emt 0:00:08]} 22. Kb1 {[%emt 0:00:30]} Ra1# {[%emt 0:00:40]} 0-1

[Event "GER-ch Youth-U12 2022"]
[Site "Willingen"]
[Date "2022.06.11"]
[Round "9.16"]
[White "Limmer, Marco"]
[Black "Freude, Paul"]
[Result "1-0"]
[ECO "B50"]
[WhiteElo "1825"]
[BlackElo "1415"]
[Annotator "NA RC COMBH"]
[PlyCount "73"]
[EventDate "2022.06.05"]
[EventType "swiss"]
[EventRounds "9"]
[EventCountry "GER"]
[SourceTitle "playchess.com"]
[Source "ChessBase"]
[SourceQuality "1"]
[TimeControl "40/4500+30:900+30"]

1. e4 {[%emt 0:00:00]} c5 {[%emt 0:00:07]} 2. Nf3 {[%emt 0:00:00]} d6 {[%emt 0:00:10]} 3. c3 {[%emt 0:00:00]} Nf6 {[%emt 0:00:56]} 4. Be2 {[%emt 0:00:00]} Nbd7 {[%emt 0:00:50]} 5. Qc2 {[%emt 0:00:00]} a6 {[%emt 0:01:11]} 6. O-O {[%emt 0:00:00]} g6 {[%emt 0:00:17]} 7. d4 {[%emt 0:00:00]} Bg7 {[%emt 0:01:04]} 8. Bc4 {[%emt 0:00:00]} b5 {[%emt 0:01:04]} 9. Be2 {[%emt 0:00:00]} O-O {[%emt 0:02:31]} 10. Bf4 {[%emt 0:07:11]} Bb7 {[%emt 0:01:02]} 11. Nbd2 {[%emt 0:02:37]} Rc8 {[%emt 0:02:08]} 12. Qd3 {[%emt 0:03:15]} Qc7 {[%emt 0:10:18]} 13. e5 {[%emt 0:08:04]} Nh5 {[%emt 0:02:26]} 14. exd6 {[%emt 0:01:59]} exd6 {[%emt 0:04:07]} 15. Be3 {[%emt 0:06:32]} f5 {[%emt 0:01:39]} 16. Ng5 {[%emt 0:06:12]} f4 {[%emt 0:06:17]} 17. Bxh5 {[%emt 0:02:09]} fxe3 {[%emt 0:04:34]} 18. fxe3 {[%emt 0:01:04]} Bd5 {[%emt 0:03:35]} 19. e4 {[%emt 0:06:53]} c4 {[%emt 0:03:58]} 20. Qc2 {[%emt 0:02:10]} Bf7 {[%emt 0:05:57]} 21. Bg4 {[%emt 0:02:49]} Rce8 {[%emt 0:01:28]} 22. Rxf7 {[%emt 0:03:40]} Rxf7 {[%emt 0:00:13]} 23. Be6 {[%emt 0:02:04]} Rxe6 {[%emt 0:01:08]} 24. Nxe6 {[%emt 0:00:06]} Qc8 {[%emt 0:00:21]} 25. Nxg7 {[%emt 0:00:33]} Kxg7 {[%emt 0:00:18]} 26. Rf1 {[%emt 0:00:50]} Nf6 {[%emt 0:00:26]} 27. Nf3 {[%emt 0:02:13]} Ng4 {[%emt 0:04:15]} 28. Qe2 {[%emt 0:01:28]} Re7 {[%emt 0:01:59]} 29. h3 {[%emt 0:02:12]} Nf6 {[%emt 0:01:32]} 30. e5 {[%emt 0:00:31]} Nh5 {[%emt 0:01:04]} 31. Qf2 {[%emt 0:03:06]} Nf4 {[%emt 0:01:35]} 32. Qh4 {[%emt 0:04:00]} Qf8 {[%emt 0:02:26]} 33. Ng5 {[%emt 0:01:47]} h6 {[%emt 0:03:17]} 34. Rxf4 {[%emt 0:00:40]} hxg5 {[%emt 0:00:28]} 35. Qxg5 {[%emt 0:00:52]} Rf7 {[%emt 0:01:12]} 36. Rxf7+ {[%emt 0:00:16]} Qxf7 {[%emt 0:00:09]} 37. exd6 {[%emt 0:00:31]} 1-0

[Event "GER-ch Youth-U12 2022"]
[Site "Willingen"]
[Date "2022.06.11"]
[Round "9.17"]
[White "Martin Fernandez, Rafael"]
[Black "Mukazhanov, Mansur"]
[Result "1-0"]
[ECO "E17"]
[WhiteElo "1678"]
[BlackElo "1279"]
[Annotator "NA RC COMBH"]
[PlyCount "119"]
[EventDate "2022.06.05"]
[EventType "swiss"]
[EventRounds "9"]
[EventCountry "GER"]
[SourceTitle "playchess.com"]
[Source "ChessBase"]
[SourceQuality "1"]
[TimeControl "40/4500+30:900+30"]

1. Nf3 {[%emt 0:00:00]} Nf6 {[%emt 0:00:00]} 2. g3 {[%emt 0:00:00]} b6 {[%emt 0:00:00]} 3. Bg2 {[%emt 0:00:00]} Bb7 {[%emt 0:00:00]} 4. O-O {[%emt 0:01:42]} e6 {[%emt 0:00:00]} 5. c4 {[%emt 0:00:00]} Be7 {[%emt 0:00:00]} 6. b3 {[%emt 0:00:00]} O-O {[%emt 0:00:00]} 7. Bb2 {[%emt 0:00:00]} d5 {[%emt 0:00:00]} 8. d4 {[%emt 0:00:00]} dxc4 {[%emt 0:01:44]} 9. bxc4 {[%emt 0:00:00]} Nbd7 {[%emt 0:01:27]} 10. Nc3 {[%emt 0:01:24]} Ne4 {[%emt 0:02:39]} 11. Nxe4 {[%emt 0:03:11]} Bxe4 {[%emt 0:01:52]} 12. d5 {[%emt 0:01:35]} exd5 {[%emt 0:01:22]} 13. cxd5 {[%emt 0:00:10]} Bf6 {[%emt 0:00:10]} 14. Nd4 {[%emt 0:01:14]} Bxg2 {[%emt 0:00:44]} 15. Kxg2 {[%emt 0:00:14]} Qe8 {[%emt 0:01:07]} 16. Qc2 {[%emt 0:01:08]} Nc5 {[%emt 0:02:55]} 17. Rfe1 {[%emt 0:02:28]} Rd8 {[%emt 0:01:38]} 18. e4 {[%emt 0:01:42]} Na4 {[%emt 0:03:17]} 19. e5 {[%emt 0:02:40]} Bxe5 {[%emt 0:04:38]} 20. f4 {[%emt 0:04:44]} Nxb2 {[%emt 0:00:18]} 21. Rxe5 {[%emt 0:00:18]} Qd7 {[%emt 0:00:54]} 22. Qxb2 {[%emt 0:00:09]} f6 {[%emt 0:00:07]} 23. Re2 {[%emt 0:05:04]} Qxd5+ {[%emt 0:00:17]} 24. Nf3 {[%emt 0:01:25]} c5 {[%emt 0:00:18]} 25. Rae1 {[%emt 0:01:37]} c4 {[%emt 0:01:53]} 26. Rd2 {[%emt 0:01:51]} Qc6 {[%emt 0:00:10]} 27. Rxd8 {[%emt 0:01:49]} Rxd8 {[%emt 0:00:07]} 28. Qe2 {[%emt 0:00:20]} Kh8 {[%emt 0:08:56]} 29. Qe4 {[%emt 0:00:50]} Qxe4 {[%emt 0:01:01]} 30. Rxe4 {[%emt 0:00:05]} b5 {[%emt 0:00:04]} 31. Rd4 {[%emt 0:05:37]} Re8 {[%emt 0:00:11]} 32. Kf2 {[%emt 0:00:10]} Kg8 {[%emt 0:00:14]} 33. a4 {[%emt 0:01:42]} a6 {[%emt 0:00:07]} 34. axb5 {[%emt 0:01:22]} axb5 {[%emt 0:00:10]} 35. Rd5 {[%emt 0:00:13]} b4 {[%emt 0:00:50]} 36. Rb5 {[%emt 0:00:47]} b3 {[%emt 0:00:13]} 37. Nd2 {[%emt 0:00:16]} Rc8 {[%emt 0:00:17]} 38. Rb4 {[%emt 0:01:48]} Rd8 {[%emt 0:04:06]} 39. Nxc4 {[%emt 0:00:56]} Rd3 {[%emt 0:00:05]} 40. Ke2 {[%emt 0:00:29]} Rc3 {[%emt 0:00:04]} 41. Nd2 {[%emt 0:15:17]} g5 {[%emt 0:15:23]} 42. Rxb3 {[%emt 0:00:25]} Rc6 {[%emt 0:00:08]} 43. Kf3 {[%emt 0:01:49]} Kg7 {[%emt 0:00:14]} 44. h3 {[%emt 0:02:03]} Kg6 {[%emt 0:00:22]} 45. Ne4 {[%emt 0:02:01]} gxf4 {[%emt 0:01:20]} 46. Kxf4 {[%emt 0:00:23]} f5 {[%emt 0:00:17]} 47. Nf2 {[%emt 0:00:31]} h5 {[%emt 0:00:21]} 48. Nd3 {[%emt 0:00:46]} Rc4+ {[%emt 0:00:16]} 49. Kf3 {[%emt 0:00:09]} Kg5 {[%emt 0:00:07]} 50. h4+ {[%emt 0:00:59]} Kf6 {[%emt 0:00:12]} 51. Rb6+ {[%emt 0:00:06]} Kg7 {[%emt 0:00:07]} 52. Nf4 {[%emt 0:00:37]} Rc3+ {[%emt 0:00:08]} 53. Kg2 {[%emt 0:00:07]} Rc2+ {[%emt 0:00:19]} 54. Kh3 {[%emt 0:00:04]} Rf2 {[%emt 0:00:04]} 55. Nxh5+ {[%emt 0:00:07]} Kh7 {[%emt 0:00:10]} 56. Nf4 {[%emt 0:00:14]} Rf1 {[%emt 0:00:09]} 57. Rf6 {[%emt 0:00:10]} Kg7 {[%emt 0:00:10]} 58. Rxf5 {[%emt 0:00:09]} Ra1 {[%emt 0:00:11]} 59. Kg4 {[%emt 0:00:12]} Ra4 {[%emt 0:00:14]} 60. Kg5 {[%emt 0:00:08]} 1-0

[Event "GER-ch Youth-U12 2022"]
[Site "Willingen"]
[Date "2022.06.11"]
[Round "9.18"]
[White "Goldkuhle, Collin"]
[Black "Pimenov, Danil"]
[Result "0-1"]
[ECO "B21"]
[WhiteElo "1323"]
[BlackElo "1337"]
[Annotator "NA RC COMBH"]
[PlyCount "72"]
[EventDate "2022.06.05"]
[EventType "swiss"]
[EventRounds "9"]
[EventCountry "GER"]
[SourceTitle "playchess.com"]
[Source "ChessBase"]
[SourceQuality "1"]
[TimeControl "40/4500+30:900+30"]

1. e4 {[%emt 0:00:00]} c5 {[%emt 0:00:00]} 2. Nc3 {[%emt 0:00:00]} Nc6 {[%emt 0:00:00]} 3. Bb5 {[%emt 0:00:08]} g6 {[%emt 0:00:00]} 4. Bxc6 {[%emt 0:00:00]} dxc6 {[%emt 0:00:00]} 5. d3 {[%emt 0:00:00]} Bg7 {[%emt 0:00:00]} 6. f4 {[%emt 0:00:00]} Nf6 {[%emt 0:00:00]} 7. Nf3 {[%emt 0:00:00]} O-O {[%emt 0:00:00]} 8. O-O {[%emt 0:00:00]} b5 {[%emt 0:00:00]} 9. Qe1 {[%emt 0:00:00]} Qb6 {[%emt 0:00:00]} 10. Kh1 {[%emt 0:00:00]} a5 {[%emt 0:00:00]} 11. Qh4 {[%emt 0:00:00]} b4 {[%emt 0:06:20]} 12. Ne2 {[%emt 0:00:00]} e6 {[%emt 0:32:55]} 13. f5 {[%emt 0:00:00]} exf5 {[%emt 0:08:06]} 14. Bh6 {[%emt 0:00:00]} Qd8 {[%emt 0:06:11]} 15. Ng5 {[%emt 0:00:00]} Ra7 {[%emt 0:14:32]} 16. Ng3 {[%emt 0:00:53]} Rd7 {[%emt 0:09:22]} 17. e5 {[%emt 0:01:03]} Rd4 {[%emt 0:01:23]} 18. N3e4 {[%emt 0:05:32]} Nh5 {[%emt 0:00:28]} 19. Bxg7 {[%emt 0:00:55]} Kxg7 {[%emt 0:00:18]} 20. g4 {[%emt 0:06:08]} fxe4 {[%emt 0:01:37]} 21. gxh5 {[%emt 0:00:41]} exd3 {[%emt 0:00:40]} 22. h6+ {[%emt 0:01:37]} Kg8 {[%emt 0:00:03]} 23. Rf4 {[%emt 0:02:12]} dxc2 {[%emt 0:01:42]} 24. Rxd4 {[%emt 0:01:04]} Qxd4 {[%emt 0:00:12]} 25. Ne4 {[%emt 0:00:51]} Qxe5 {[%emt 0:01:41]} 26. Nf6+ {[%emt 0:00:51]} Kh8 {[%emt 0:00:03]} 27. Qf2 {[%emt 0:01:29]} Bf5 {[%emt 0:00:14]} 28. Nd7 {[%emt 0:01:25]} Qd5+ {[%emt 0:00:34]} 29. Kg1 {[%emt 0:00:22]} Qxd7 {[%emt 0:00:05]} 30. Qxc5 {[%emt 0:00:53]} Qd8 {[%emt 0:01:16]} 31. h4 {[%emt 0:01:02]} Re8 {[%emt 0:00:25]} 32. Qxc6 {[%emt 0:00:18]} Qd4+ {[%emt 0:00:28]} 33. Kh2 {[%emt 0:00:50]} Re2+ {[%emt 0:00:06]} 34. Kh1 {[%emt 0:00:41]} Be4+ {[%emt 0:00:05]} 35. Qxe4 {[%emt 0:00:06]} Qxe4+ {[%emt 0:00:03]} 36. Kg1 {[%emt 0:00:10]} Qg2# {[%emt 0:00:33]} 0-1

[Event "GER-ch Youth-U12 2022"]
[Site "Willingen"]
[Date "2022.06.11"]
[Round "9.19"]
[White "Herrmann, Jakob"]
[Black "Li, Luxuan"]
[Result "1-0"]
[ECO "C45"]
[WhiteElo "1737"]
[BlackElo "1235"]
[Annotator "NA RC COMBH"]
[PlyCount "73"]
[EventDate "2022.06.05"]
[EventType "swiss"]
[EventRounds "9"]
[EventCountry "GER"]
[SourceTitle "playchess.com"]
[Source "ChessBase"]
[SourceQuality "1"]
[TimeControl "40/4500+30:900+30"]

1. e4 {[%emt 0:00:00]} e5 {[%emt 0:00:00]} 2. Nf3 {[%emt 0:00:00]} Nc6 {[%emt 0:00:00]} 3. d4 {[%emt 0:00:00]} exd4 {[%emt 0:00:00]} 4. Nxd4 {[%emt 0:00:00]} Bc5 {[%emt 0:00:00]} 5. Be3 {[%emt 0:00:00]} Qf6 {[%emt 0:00:00]} 6. c3 {[%emt 0:00:00]} Nge7 {[%emt 0:00:00]} 7. Bc4 {[%emt 0:00:00]} Bb6 {[%emt 0:00:00]} 8. O-O {[%emt 0:00:00]} O-O {[%emt 0:00:00]} 9. Nc2 {[%emt 0:00:00]} d6 {[%emt 0:00:00]} 10. Nd2 {[%emt 0:00:00]} Qg6 {[%emt 0:00:00]} 11. Bxb6 {[%emt 0:00:00]} axb6 {[%emt 0:00:00]} 12. Ne3 {[%emt 0:00:00]} Ne5 {[%emt 0:00:00]} 13. Be2 {[%emt 0:00:00]} c6 {[%emt 0:00:00]} 14. f4 {[%emt 0:00:00]} Nd7 {[%emt 0:00:00]} 15. Bf3 {[%emt 0:02:16]} Nc5 {[%emt 0:00:00]} 16. Qe2 {[%emt 0:03:03]} f5 {[%emt 0:00:09]} 17. e5 {[%emt 0:11:45]} d5 {[%emt 0:02:32]} 18. Nb3 {[%emt 0:04:15]} Ne4 {[%emt 0:02:01]} 19. Nd4 {[%emt 0:01:40]} Qh6 {[%emt 0:04:45]} 20. g3 {[%emt 0:06:48]} Bd7 {[%emt 0:02:22]} 21. a3 {[%emt 0:07:05]} Ra5 {[%emt 0:01:27]} 22. Rad1 {[%emt 0:05:58]} c5 {[%emt 0:01:36]} 23. Nb3 {[%emt 0:00:14]} Rb5 {[%emt 0:00:35]} 24. Nxd5 {[%emt 0:00:40]} Nxd5 {[%emt 0:01:33]} 25. Rxd5 {[%emt 0:00:10]} Bc6 {[%emt 0:00:16]} 26. Bxe4 {[%emt 0:00:19]} fxe4 {[%emt 0:00:20]} 27. Rd6 {[%emt 0:00:06]} Qh3 {[%emt 0:01:33]} 28. Qc4+ {[%emt 0:01:11]} Kh8 {[%emt 0:00:42]} 29. a4 {[%emt 0:01:09]} Rxb3 {[%emt 0:03:18]} 30. Qxb3 {[%emt 0:00:10]} e3 {[%emt 0:00:21]} 31. Rxc6 {[%emt 0:03:23]} bxc6 {[%emt 0:01:04]} 32. Qxb6 {[%emt 0:00:49]} h6 {[%emt 0:01:34]} 33. Qxc5 {[%emt 0:00:12]} e2 {[%emt 0:00:33]} 34. Qxf8+ {[%emt 0:00:08]} Kh7 {[%emt 0:00:18]} 35. Re1 {[%emt 0:00:19]} Qg4 {[%emt 0:00:36]} 36. Qc5 {[%emt 0:00:34]} Qf3 {[%emt 0:00:39]} 37. Qf2 {[%emt 0:00:08]} 1-0

[Event "GER-ch Youth-U12 2022"]
[Site "Willingen"]
[Date "2022.06.11"]
[Round "9.20"]
[White "Kullmann, Max"]
[Black "Wylie, Leonard"]
[Result "0-1"]
[ECO "D87"]
[WhiteElo "1442"]
[BlackElo "1733"]
[Annotator "NA RC COMBH"]
[PlyCount "60"]
[EventDate "2022.06.05"]
[EventType "swiss"]
[EventRounds "9"]
[EventCountry "GER"]
[SourceTitle "playchess.com"]
[Source "ChessBase"]
[SourceQuality "1"]
[TimeControl "40/4500+30:900+30"]

1. d4 {[%emt 0:00:00]} Nf6 {[%emt 0:00:00]} 2. c4 {[%emt 0:00:00]} g6 {[%emt 0:00:00]} 3. Nc3 {[%emt 0:00:00]} d5 {[%emt 0:00:00]} 4. cxd5 {[%emt 0:00:00]} Nxd5 {[%emt 0:00:00]} 5. e4 {[%emt 0:00:00]} Nxc3 {[%emt 0:00:00]} 6. bxc3 {[%emt 0:00:00]} Bg7 {[%emt 0:00:00]} 7. Bc4 {[%emt 0:00:00]} c5 {[%emt 0:00:00]} 8. Ne2 {[%emt 0:00:00]} Nc6 {[%emt 0:00:00]} 9. Be3 {[%emt 0:00:00]} Qa5 {[%emt 0:00:00]} 10. O-O {[%emt 0:00:00]} O-O {[%emt 0:00:00]} 11. Qc2 {[%emt 0:00:09]} cxd4 {[%emt 0:00:00]} 12. cxd4 {[%emt 0:00:16]} Rd8 {[%emt 0:00:00]} 13. Rfd1 {[%emt 0:07:58]} e6 {[%emt 0:04:21]} 14. Rac1 {[%emt 0:08:06]} b5 {[%emt 0:09:55]} 15. Bb3 {[%emt 0:03:41]} Bb7 {[%emt 0:03:18]} 16. f3 {[%emt 0:10:18]} Rac8 {[%emt 0:04:57]} 17. Qb2 {[%emt 0:04:28]} Rd7 {[%emt 0:08:58]} 18. a3 {[%emt 0:11:17]} Rcd8 {[%emt 0:04:59]} 19. Rd3 {[%emt 0:16:33]} Ba6 {[%emt 0:03:58]} 20. Bf2 {[%emt 0:11:42]} b4 {[%emt 0:11:45]} 21. Rd2 {[%emt 0:01:50]} bxa3 {[%emt 0:01:17]} 22. Qc3 {[%emt 0:04:40]} Bxe2 {[%emt 0:02:20]} 23. Rxe2 {[%emt 0:01:12]} Qxc3 {[%emt 0:00:17]} 24. Rxc3 {[%emt 0:00:04]} Nxd4 {[%emt 0:00:17]} 25. Re1 {[%emt 0:00:52]} Nxb3 {[%emt 0:01:27]} 26. Rxb3 {[%emt 0:00:06]} a2 {[%emt 0:00:05]} 27. Ra3 {[%emt 0:00:35]} a1=Q {[%emt 0:00:11]} 28. Raxa1 {[%emt 0:00:15]} Bxa1 {[%emt 0:00:07]} 29. Rxa1 {[%emt 0:00:02]} Rd1+ {[%emt 0:00:08]} 30. Rxd1 {[%emt 0:00:06]} Rxd1+ {[%emt 0:00:06]} 0-1